[Event "Polish Youth B18 Championship 2023"]
[Site "Jastrzebia Gora"]
[Date "2023.03.19"]
[Round "9.2"]
[White "Kacprzak, Kacper"]
[Black "Luczak, Filip"]
[Result "0-1"]
[ECO "B00"]
[WhiteElo "2248"]
[BlackElo "2345"]
[Annotator "TA"]
[PlyCount "108"]
[EventDate "2023.03.11"]
[EventType "swiss"]
[EventCountry "POL"]
[SourceTitle "playchess.com"]
[Source "ChessBase"]
[SourceQuality "1"]
[TimeControl "40/5400+30:1800+30"]

{[%evp 9,108,80,68,68,75,66,75,59,55,53,81,73,91,77,87,83,93,89,170,159,172,182,190,157,170,168,156,100,155,100,106,120,133,133,133,133,137,135,130,125,124,99,115,116,211,210,210,202,232,218,202,202,264,38,55,0,31,0,0,-40,0,-32,-31,-85,0,0,0,-85,-85,-108,-97,-99,-106,-139,-116,-145,-139,-139,-131,-175,-174,-285,-265,-451,-439,-439,-425,-488,-451,-606,-601,-628,-653,-827,-831,-1074,-1000,-29988,-1364,-29989,-29990]} 1. e4 {[%emt 0:00:02]} d6 {[%emt 0:00:03]} 2. d4 {[%emt 0:00:04]} Nd7 {[%emt 0:00:03]} 3. Nf3 {[%emt 0:02:12]} g6 {[%emt 0:01:56]} 4. Bc4 {[%emt 0:00:27]} Nb6 {[%emt 0:01:01]} 5. Bb3 {[%emt 0:00:37]} Bg7 {[%emt 0:00:12]} 6. O-O {[%emt 0:03:15] B07: Pirc Defence: Miscellaneous Systems.} e6 {[%emt 0:00:43]} 7. Re1 {[%emt 0:01:02]} Ne7 {[%emt 0:01:28] [#]} 8. Nbd2 $146 {[%emt 0:02:37][%cal Bb1d2,Bd2f1,Bf1e3,Be3g4][%mdl 32] White is better.} ({Predecessor:} 8. Bf4 d5 9. exd5 Nbxd5 10. Bg5 c6 11. Nbd2 h6 12. Bh4 O-O 13. c3 Nf6 14. Ne5 g5 15. Bg3 Nf5 16. Qe2 Nxg3 17. hxg3 Nd5 18. Rad1 Qc7 19. c4 Ne7 {1-0 Skokov,B (2016)-Breit,N (1993) Omsk-ch 2010 (5)}) 8... O-O {[%emt 0:08:15]} 9. Nf1 {[%emt 0:02:42]} d5 {[%emt 0:01:46]} 10. e5 {[%emt 0:01:49]} c5 {[%emt 0:01:18] And now ...c4 would win.} 11. c3 {[%emt 0:03:43]} (11. dxc5 Nd7 $14) 11... cxd4 {[%emt 0:04:50]} 12. cxd4 {[%emt 0:00:08]} Bd7 {[%emt 0:01:58]} 13. Ne3 {[%emt 0:07:22]} h6 {[%emt 0:10:50]} (13... Nf5 $16 {was necessary.}) 14. Ng4 $18 {[%emt 0:05:24]} Nf5 {[%emt 0:03:03]} 15. Bc2 {[%emt 0:00:32] aiming for Bxf5.} Kh7 {[%emt 0:02:42]} 16. b3 {[%emt 0:05:02]} Rh8 {[%emt 0:07:15]} 17. a4 {[%emt 0:03:52]} Rc8 {[%emt 0:01:58]} 18. Qd2 {[%emt 0:05:16]} (18. Bf4 $142) 18... Kg8 {[%emt 0:05:30]} (18... Nh4 $142) 19. Ba3 {[%emt 0:09:46]} (19. a5 $142 Na8 20. Bxf5 gxf5 21. Nf6+ Bxf6 22. exf6) 19... Nh4 $16 {[%emt 0:13:15]} 20. Re3 {[%emt 0:07:35]} h5 {[%emt 0:02:41] [#]} 21. Nf6+ {[%emt 0:00:05][%mdl 512]} Bxf6 {[%emt 0:00:05]} 22. exf6 {[%emt 0:00:06]} Qxf6 {[%emt 0:02:37]} 23. Bd6 {[%emt 0:00:52] Threatens to win with Be5.} Rh7 {[%emt 0:04:55]} 24. Be5 {[%emt 0:03:28]} Qd8 {[%emt 0:00:09]} 25. Nxh4 {[%emt 0:00:29]} Qxh4 {[%emt 0:00:03]} 26. Rf3 f5 {[%emt 0:01:11]} (26... Qe7 $16 {was called for.}) 27. a5 $18 {[%emt 0:02:27][%mdl 1024] White has strong compensation.} Na8 {[%emt 0:00:44]} 28. Rg3 {[%emt 0:03:39]} Kf7 {[%emt 0:03:31]} 29. Bd3 {[%emt 0:05:15] This pair of bishops is nice. Black is weak on the dark squares} Qd8 {[%emt 0:02:00] [#]} 30. h4 $1 {[%emt 0:00:23][%mdl 512]} Nc7 {[%emt 0:03:07]} (30... Be8 31. a6) 31. Rg5 $2 {[%emt 0:02:27]} (31. a6 $18 bxa6 32. Bxa6 Nxa6 33. Rxa6) 31... Ne8 $1 $14 {[%emt 0:00:51]} 32. Re1 {[%emt 0:05:39]} ({Better is} 32. a6 $14 b6 33. Rc1) 32... Nf6 {[%emt 0:02:18]} 33. b4 {[%emt 0:06:50]} a6 {[%emt 0:01:15]} (33... Ne4 34. Bxe4 dxe4 35. Rxe4 $16) 34. f3 {[%emt 0:04:58]} Rg7 {[%emt 0:00:43]} 35. Rg3 {[%emt 0:03:11]} Rg8 {[%emt 0:01:01]} 36. Qf4 {[%emt 0:02:51]} ({White should play} 36. Rh3 $15) 36... Nh7 {[%emt 0:03:50]} ({Black should try} 36... Bb5 $17 37. Bxb5 axb5) 37. Qh6 $11 {[%emt 0:00:10]} Nf8 {[%emt 0:01:20]} 38. Qf4 {[%emt 0:02:23]} (38. Rg5 $11 Qe7 39. Rb1) 38... Bb5 $17 {[%emt 0:02:59]} 39. Bxb5 {[%emt 0:00:45]} axb5 {[%emt 0:00:05]} 40. Bd6 {[%emt 0:00:00]} Rc4 {[%emt 0:00:00]} 41. Bc5 {[%emt 0:03:40] [#]} Nd7 $1 {[%emt 0:04:57][%cal Oe6e5] Prevents Qe5} 42. Bd6 {[%emt 0:04:32]} Qf6 {[%emt 0:02:23]} 43. Rd1 {[%emt 0:02:24]} Rgc8 {[%emt 0:04:32]} 44. Qh6 {[%emt 0:01:50]} R8c6 {[%emt 0:04:23]} (44... Rxd4 45. Qh7+ Ke8 46. Re1 $16 (46. Qxg6+ $2 Qxg6 47. Rxg6 Rxd1+ $19)) (44... Rh8 45. Qf4 $17) 45. Be7 {[%emt 0:06:46] [#]} (45. Qh7+ Qg7 46. Qxg7+ Kxg7 $19) (45. Qf4 $142) 45... Qg7 $1 $19 {[%emt 0:03:43]} (45... Qxe7 $2 {gets mated.} 46. Qxg6+ Kf8 47. Qg8#) (45... Kxe7 46. Rxg6 $16) 46. Qg5 {[%emt 0:01:07]} (46. Qxg7+ Kxg7 47. f4) 46... Rxd4 {[%emt 0:01:31]} 47. Re1 {[%emt 0:01:16]} (47. Rxd4 $2 Qxd4+ 48. Kh2 f4 49. Qxg6+ Kxe7) 47... e5 {[%emt 0:01:18]} ({But not} 47... Ke8 $2 48. Bc5 $19) 48. Bd8 {[%emt 0:00:05]} Kg8 {[%emt 0:04:37]} ({Don't do} 48... Rxb4 49. Qe7+ Kg8 50. Qxb4 $18) 49. a6 {[%emt 0:02:06]} bxa6 {[%emt 0:01:19]} 50. Ba5 {[%emt 0:00:26]} Kh7 {[%emt 0:00:54]} 51. Qd8 {[%emt 0:00:10]} Rdc4 {[%emt 0:01:39]} 52. Rg5 {[%emt 0:00:21]} e4 {[%emt 0:00:44] Strongly threatening ...Rc1.} 53. fxe4 {[%emt 0:00:41]} dxe4 {[%emt 0:00:48]} (53... Rc1 $142 54. Kh2 Rxe1 55. Bb6 Nxb6 56. Qb8 Rcc1 57. Qf4 Rh1+ 58. Kg3 Rc3+ 59. Qe3 Rxe3+ 60. Kf2 Qd4 61. Rxh5+ gxh5 62. exf5 Qf4#) 54. Rd1 {[%emt 0:00:18]} Rc1 {[%emt 0:01:07] Quite a comeback for Black.   Weighted Error Value: White=0.61/Black=0.23 (precise)} 0-1

[Event "Polish Youth B18 Championship 2023"]
[Site "Jastrzebia Gora"]
[Date "2023.03.19"]
[Round "9.3"]
[White "Kaliszuk, Kamil"]
[Black "Kacprzak, Karol"]
[Result "0-1"]
[ECO "B12"]
[WhiteElo "2217"]
[BlackElo "2221"]
[Annotator "TA"]
[PlyCount "68"]
[EventDate "2023.03.11"]
[EventType "swiss"]
[EventCountry "POL"]
[SourceTitle "playchess.com"]
[Source "ChessBase"]
[SourceQuality "1"]
[TimeControl "40/5400+30:1800+30"]

{[%evp 12,68,8,-16,-20,-19,-8,-46,-39,-37,-45,-39,-20,-94,-67,-79,-27,-50,-52,-61,11,-46,25,28,23,-35,-50,-43,0,-79,-79,-72,-70,-64,-54,-81,-64,-81,-63,-103,-97,-123,-102,-109,-87,-202,-198,-195,-205,-391,-397,-478,-457,-461,-427,-418,-380,-451,-431]} 1. e4 {[%emt 0:00:06]} c6 {[%emt 0:01:20]} 2. d4 {[%emt 0:00:11]} d5 {[%emt 0:00:09]} 3. e5 {[%emt 0:01:21]} Bf5 {[%emt 0:01:51]} 4. h4 {[%emt 0:00:27]} h5 {[%emt 0:00:16]} 5. c4 {[%emt 0:00:07]} e6 {[%emt 0:01:11]} 6. Nc3 {[%emt 0:00:48]} Ne7 {[%emt 0:01:25]} 7. Bg5 {[%emt 0:01:00]} Qb6 $1 {[%emt 0:10:46][%mdl 4] is recently more successful than 7...dxc4. B12: Caro-Kann: Advance Variation.} 8. Qd2 {[%emt 0:05:15]} Nd7 {[%emt 0:05:56]} 9. Nge2 {[%emt 0:07:15]} dxc4 {[%emt 0:03:16] Black is slightly better.} 10. Ng3 {[%emt 0:06:25]} Bg6 {[%emt 0:00:11] Threatens to win with ...0-0-0.} 11. Bxc4 {[%emt 0:02:43]} O-O-O {[%emt 0:07:08][%cal Od7e5] [#] aiming for ...Nxe5!} 12. Bf4 {[%emt 0:10:55]} (12. O-O-O $11 {remains equal.}) 12... Qb4 {[%emt 0:07:28]} 13. Be2 {[%emt 0:22:45]} Nb6 {[%emt 0:03:32] [#]} (13... c5 $17 14. dxc5 Nxc5) 14. Rd1 $146 {[%emt 0:02:37]} ({Predecessor:} 14. O-O-O Ned5 15. Nxd5 Nxd5 16. Qxb4 Nxb4 17. Bc4 b5 18. Bb3 Nd3+ 19. Rxd3 Bxd3 20. Kd2 Rxd4 21. Ke3 Rd7 22. Rd1 Bc5+ {0-1 Perez Guerra,R (1478)-Natalicchio Escalante,N (2237) Gran Canaria Cabildo op 2015 (3)}) 14... Ned5 {[%emt 0:08:36][%cal Be7d5,Bd5b6,Bb6c4,Bc4e3][%mdl 32] White must now prevent ...Nxf4.} 15. Bg5 {[%emt 0:11:52]} Rd7 {[%emt 0:03:37]} (15... f6 $15 16. exf6 gxf6 17. Nxd5 Nxd5 18. Qxb4 {[%mdl 64] Remove Defender} Bxb4+ 19. Bd2 Bxd2+ 20. Kxd2 e5) 16. O-O {[%emt 0:06:40]} (16. a3 $11 Qb3 17. Nxd5 Nxd5 18. Rc1) 16... Nc4 {[%emt 0:16:46]} ({Better is} 16... f6 $15 17. exf6 gxf6 18. Bxf6 {[%mdl 64] Remove Defender} Nxf6) 17. Bxc4 $11 {[%emt 0:03:58]} Qxc4 {[%emt 0:00:36]} 18. Qe2 {[%emt 0:03:14]} (18. Nxd5 $11 Qxd5 19. a3) 18... Qxe2 $15 {[%emt 0:02:05]} 19. Ngxe2 {[%emt 0:00:10]} Nb6 {[%emt 0:02:30]} 20. Be3 {[%emt 0:06:11]} (20. f3 $11) 20... Nc4 $17 {[%emt 0:05:05]} 21. b3 {[%emt 0:00:25]} Nxe3 {[%emt 0:04:38]} 22. fxe3 {[%emt 0:00:03]} Bb4 {[%emt 0:01:00]} 23. Rc1 {[%emt 0:01:44]} Ba3 {[%emt 0:01:31]} 24. Rcd1 {[%emt 0:00:39]} Rhd8 {[%emt 0:02:19]} 25. Ng3 {[%emt 0:03:44]} Be7 {[%emt 0:03:44]} 26. Rf4 {[%emt 0:00:26]} f6 {[%emt 0:01:22]} 27. exf6 {[%emt 0:00:55]} gxf6 {[%emt 0:00:02][%cal Bg7f6,Bf6e5][%mdl 32]} 28. Rc1 {[%emt 0:00:49]} (28. Nce2 $17 {keeps fighting.}) 28... e5 $19 {[%emt 0:01:23]} 29. dxe5 {[%emt 0:00:12]} fxe5 {[%emt 0:00:02]} 30. Rc4 {[%emt 0:01:15] [#]} (30. Rf3) 30... Bd3 {[%emt 0:00:48]} 31. Nce2 {[%emt 0:01:13]} Bxc4 {[%emt 0:00:28]} 32. Rxc4 {[%emt 0:00:08]} Rd1+ {[%emt 0:00:55]} 33. Kh2 {[%emt 0:00:07]} R1d2 {[%emt 0:00:40]} 34. Nc3 {[%emt 0:00:20]} Rc2 {[%emt 0:02:23] Weighted Error Value: White=0.41/Black=0.18 (very precise)} ({Avoid the trap} 34... Rg8 $2 35. Kh3 $19) 0-1

[Event "Polish Youth B18 Championship 2023"]
[Site "Jastrzebia Gora"]
[Date "2023.03.19"]
[Round "9.4"]
[White "Ochedzan, Tymon"]
[Black "Paprocki, Antoni"]
[Result "1/2-1/2"]
[ECO "C26"]
[WhiteElo "2240"]
[BlackElo "2255"]
[Annotator "TA"]
[PlyCount "92"]
[EventDate "2023.03.11"]
[EventType "swiss"]
[EventCountry "POL"]
[SourceTitle "playchess.com"]
[Source "ChessBase"]
[SourceQuality "1"]
[TimeControl "40/5400+30:1800+30"]

{[%evp 16,92,-14,-13,0,0,0,0,22,14,-3,0,-9,0,17,0,0,0,0,0,0,-2,16,20,13,0,0,0,0,0,16,0,0,0,0,0,0,-31,0,0,0,0,0,0,0,0,0,0,0,0,0,0,12,-273,-402,-780,0,0,0,0,12,12,148,0,0,0,0,0,0,0,0,0,71,74,58,0,0,0,0]} 1. e4 {[%emt 0:02:03]} e5 {[%emt 0:00:09]} 2. Nc3 {[%emt 0:00:25]} Nf6 {[%emt 0:02:14]} 3. g3 {[%emt 0:00:37]} d5 {[%emt 0:01:28]} 4. exd5 {[%emt 0:00:11]} Nxd5 {[%emt 0:00:07]} 5. Bg2 {[%emt 0:00:05]} Nxc3 {[%emt 0:00:11]} 6. bxc3 {[%emt 0:00:06]} Nc6 {[%emt 0:01:17]} 7. Nf3 {[%emt 0:00:07]} Bc5 {[%emt 0:01:16]} 8. O-O {[%emt 0:00:39]} O-O {[%emt 0:00:30]} 9. Re1 {[%emt 0:00:14]} Qf6 {[%emt 0:01:55] C47: Scotch Four Knights and Four Knights with 4 g3.} 10. d3 {[%emt 0:00:33]} Bg4 {[%emt 0:05:09]} 11. h3 {[%emt 0:05:21]} Bh5 {[%emt 0:01:07]} 12. Be3 {[%emt 0:04:37]} (12. g4 $5 {[%cal Rg4h5]} Bg6 13. Bg5 $14) 12... Bb6 {[%emt 0:01:12]} 13. g4 {[%emt 0:02:40]} Bg6 {[%emt 0:00:14]} 14. Nd2 {[%emt 0:00:14] [#]} Qd8 $146 {[%emt 0:24:08]} ({Predecessor:} 14... Rad8 15. Qf3 Qxf3 16. Bxf3 Ba5 17. Rab1 Bxc3 18. Rxb7 Nd4 19. Bxd4 Rxd4 20. Re2 Bxd2 21. Rxd2 {½-½ Adhiban,B (2677)-Nguyen,N (2629) FIDE World Cup 2017 (1.3)}) 15. Bxb6 {[%emt 0:11:16]} axb6 {[%emt 0:00:07]} 16. Bxc6 {[%emt 0:00:08][%mdl 64] Remove Defender} bxc6 {[%emt 0:00:05]} 17. Rxe5 {[%emt 0:00:19]} f5 {[%emt 0:00:30]} 18. Qe2 {[%emt 0:02:07]} (18. Qf3 $5 {[%cal Rf3c6]}) 18... Ra3 {[%emt 0:17:48]} 19. Re7 {[%emt 0:05:31]} Qd5 {[%emt 0:03:49]} 20. c4 {[%emt 0:07:53]} Qd4 {[%emt 0:01:01]} 21. Re1 {[%emt 0:00:09] And now Qe6+ would win.} fxg4 {[%emt 0:01:32]} 22. hxg4 {[%emt 0:06:59]} Rxa2 {[%emt 0:00:28]} 23. Nf1 {[%emt 0:04:15][%cal Bd2f1,Bf1g3,Bg3e4][%mdl 32]} Qf4 {[%emt 0:09:36]} (23... Bxd3 $2 24. Qe6+ Kh8 25. Rf7 $18 (25. cxd3 $2 {gets mated.} Qxf2+ 26. Kh1 Qg2#)) 24. Ng3 {[%emt 0:07:37]} h6 {[%emt 0:03:00]} 25. Kg2 {[%emt 0:03:08]} Kh7 {[%emt 0:05:29]} 26. Rh1 {[%emt 0:03:34]} Ra5 {[%emt 0:05:09]} (26... b5 $5 {[%cal Rb5c4]} 27. Nh5 Bxh5 $15) 27. Ne4 {[%emt 0:01:39]} Kg8 {[%emt 0:03:54]} 28. Rh3 {[%emt 0:03:05]} Re5 {[%emt 0:03:02]} (28... Ra1 {feels hotter.} 29. Re3 h5 30. Qf3 Qxf3+ 31. Rxf3 Bxe4 32. Rxe4 Rxf3 33. Kxf3 hxg4+ 34. Rxg4 Kf7) 29. Rxe5 {[%emt 0:00:55]} Qxe5 {[%emt 0:00:02]} 30. Re3 {[%emt 0:00:27]} Qf4 {[%emt 0:01:35]} 31. Ng3 {[%emt 0:01:59]} b5 {[%emt 0:01:57]} 32. c5 {[%emt 0:02:42]} Qd4 {[%emt 0:00:55]} 33. Re6 {[%emt 0:01:25][%csl LRc6,LRg6]} Bf7 {[%emt 0:01:44]} 34. Qe5 {[%emt 0:03:07][%mdl 8192]} ({Don't go for} 34. Qe4 $2 Qxe4+ 35. Rxe4 Bd5 $19) (34. Nf5 $11 {and White stays safe.} Qd5+ 35. Re4 Qxc5 36. c4 bxc4 37. dxc4) 34... Qxg4 $19 {[%emt 0:00:37]} 35. Rxc6 {[%emt 0:00:23] [#]} (35. Re7 $142 Bd5+ 36. Kg1) 35... Be8 $2 {[%emt 0:01:03]} (35... Re8 $1 $19 {[%cal Re8e5]} 36. Qf5 Qxf5 {[%mdl 64] Remove Defender} 37. Nxf5 Bd5+ 38. Kg3 Bxc6) 36. Rxc7 $11 {[%emt 0:02:20] Hoping for Qe4.} Qf3+ {[%emt 0:00:56]} 37. Kh3 {[%emt 0:01:56][%csl Gc7][%cal Re5g7] Dancing on a razor blade.} Bf7 {[%emt 0:00:02]} 38. Qe3 {[%emt 0:02:55]} Qd1 {[%emt 0:00:54] [#]} (38... Bd5 $11 39. Qxf3 Rxf3) 39. Qe2 {[%emt 0:00:55] White is more active.} (39. c6 $1 $16) 39... Qg1 $1 {[%emt 0:00:41]} 40. Re7 {[%emt 0:00:00] Threatens to win with c6.} Bd5 {[%emt 0:00:00] Dodges c6. ( -> ...Qg2+)} 41. Qf1 {[%emt 0:05:35] Against Qg2+} (41. Qe5 $2 {is a self mate.} Qg2+ 42. Kg4 Bf3+ 43. Kh4 Qh2#) 41... Qxf2 {[%emt 0:03:13]} 42. Qxf2 {[%emt 0:00:35]} Rxf2 {[%emt 0:00:06]} 43. Ne2 {[%emt 0:00:26]} g5 {[%emt 0:07:54]} (43... b4 $11 {remains equal.}) 44. Nd4 $16 {[%emt 0:01:48] Strongly threatening Rd7.} Rf4 {[%emt 0:05:41]} 45. Nxb5 {[%emt 0:01:54]} (45. c3 $1 $14) 45... Rf3+ $1 $11 {[%emt 0:00:34]} 46. Kg4 {[%emt 0:01:12] c4 is the strong threat.} Rf4+ {[%emt 0:00:38] Weighted Error Value: White=0.27 (precise) /Black=0.23 (precise)} 1/2-1/2

[Event "Polish Youth B18 Championship 2023"]
[Site "Jastrzebia Gora"]
[Date "2023.03.19"]
[Round "9.5"]
[White "Backiel, Hubert"]
[Black "Chyzy, Jakub"]
[Result "1/2-1/2"]
[ECO "D35"]
[WhiteElo "2127"]
[BlackElo "2250"]
[Annotator "TA"]
[PlyCount "92"]
[EventDate "2023.03.11"]
[EventType "swiss"]
[EventCountry "POL"]
[SourceTitle "playchess.com"]
[Source "ChessBase"]
[SourceQuality "1"]
[TimeControl "40/5400+30:1800+30"]

{[%evp 25,92,21,21,20,29,22,33,38,37,38,38,35,93,52,66,69,83,83,83,70,75,65,66,76,111,112,164,78,115,90,93,92,160,138,156,115,118,103,120,105,105,97,108,115,107,87,86,85,86,81,89,77,87,39,45,45,53,25,25,25,25,25,22,8,8,4,4,4,6]} 1. d4 {[%emt 0:01:19]} Nf6 {[%emt 0:01:47]} 2. c4 {[%emt 0:00:05]} e6 {[%emt 0:00:20]} 3. Nc3 {[%emt 0:00:04]} d5 {[%emt 0:01:20]} 4. cxd5 {[%emt 0:00:15]} exd5 {[%emt 0:00:07]} 5. Bg5 {[%emt 0:00:06]} Be7 {[%emt 0:00:32]} 6. e3 {[%emt 0:00:05]} O-O {[%emt 0:00:09]} 7. Bd3 {[%emt 0:00:07]} Nbd7 {[%emt 0:00:49]} 8. Qc2 {[%emt 0:00:55]} Re8 {[%emt 0:00:11]} 9. h3 {[%emt 0:01:57]} Nf8 {[%emt 0:04:54]} 10. Nf3 {[%emt 0:00:54]} c6 {[%emt 0:01:19]} 11. O-O {[%emt 0:04:46]} Ne4 {[%emt 0:00:16]} 12. Bf4 {[%emt 0:02:01]} Ng5 {[%emt 0:04:17] is the legacy move (12...f5).} 13. Nxg5 {[%emt 0:04:17]} Bxg5 {[%emt 0:00:07]} 14. Bh2 {[%emt 0:00:04] D36: Queen's Gambit Declined: Exchange Variation: Main line (5 Bg5 c6 6 Qc2).} Be7 {[%emt 0:02:31] Prevents b4} 15. Rab1 {[%emt 0:14:32]} Bd6 {[%emt 0:06:49]} 16. Bxd6 {[%emt 0:04:48] White is slightly better.} Qxd6 {[%emt 0:00:03]} 17. b4 {[%emt 0:00:39]} a6 {[%emt 0:01:51]} 18. a4 {[%emt 0:02:40][%cal Ba2a4,Ba4b5][%mdl 32] [#]} Re6 $146 {[%emt 0:10:08]} ({Black should play} 18... g6 $14) ({Predecessor:} 18... Ng6 19. Qd1 f5 20. Re1 Bd7 21. Bf1 Nh8 22. a5 Re7 23. Na4 Rae8 24. Nc5 Bc8 25. Qd2 Nf7 26. f4 Qh6 27. Qf2 Nd6 28. h4 Qf6 29. g3 {½-½ Terrieux,K (2331)-Vernay,C (2381) FRA-ch Accession 2007 (8)}) 19. Ne2 {[%emt 0:03:56]} Rh6 {[%emt 0:12:17]} 20. Ng3 {[%emt 0:09:33]} Ng6 {[%emt 0:00:25]} 21. b5 {[%emt 0:07:32]} cxb5 {[%emt 0:11:40]} 22. axb5 {[%emt 0:00:26]} a5 {[%emt 0:00:01]} 23. Rfc1 {[%emt 0:02:31] [#] Threatens to win with Qxc8+.} Ne7 {[%emt 0:10:38]} 24. Rb3 {[%emt 0:08:01]} Kf8 {[%emt 0:09:22]} 25. Rc3 {[%emt 0:02:04][%cal Rc3c8] Strongly threatening Rxc8+!} (25. Bxh7 $2 g6 26. Bxg6 Rxg6 $19) 25... Qb6 {[%emt 0:05:10] [#]} (25... Bd7 $16 26. Rc7 (26. Bxh7 $2 g6 $19) 26... b6) 26. Rc7 {[%emt 0:03:42]} ({Stronger than} 26. Bxh7 g6 27. Bxg6 Rxg6 $17) (26. Bf5 $1 $18 {[%cal Rf5c8]} Be6 27. Rc7 (27. Bxh7 g6 $17)) 26... Nc6 {[%emt 0:04:22]} 27. Qc5+ {[%emt 0:06:43]} Qxc5 {[%emt 0:00:02]} 28. dxc5 {[%emt 0:02:20]} Ne7 {[%emt 0:03:33] Wards off Bf5} ({Better is} 28... Nd8) 29. Ne2 $16 {[%emt 0:01:57][%cal Bg3e2,Be2d4,Bd4b3][%mdl 32]} b6 {[%emt 0:04:56]} 30. Nd4 {[%emt 0:00:16]} Ke8 {[%emt 0:01:39]} 31. Ra1 {[%emt 0:01:07] White is much more active. The black rooks are badly placed.} Bd7 {[%emt 0:03:22]} 32. cxb6 {[%emt 0:10:26]} (32. c6 $6 Bc8 $11) 32... Rxb6 {[%emt 0:00:02]} 33. Rc3 {[%emt 0:00:08]} ({Don't do} 33. Bxh7 g6 $14) 33... Rb7 {[%emt 0:00:32]} 34. Rca3 {[%emt 0:01:12]} ({Of course not} 34. Bxh7 g6 $11) 34... Rba7 {[%emt 0:00:03]} 35. Nb3 {[%emt 0:01:27]} Nc8 {[%emt 0:01:30]} 36. Rxa5 {[%emt 0:02:03]} Rxa5 {[%emt 0:00:12]} 37. Rxa5 {[%emt 0:01:32]} Rxa5 {[%emt 0:00:12]} 38. Nxa5 {[%emt 0:00:03][%mdl 4096] Endgame KBN-KBN} Kd8 {[%emt 0:00:44]} 39. Nb7+ {[%emt 0:01:28]} (39. Nb3 $16) 39... Kc7 $14 {[%emt 0:00:08]} 40. Nc5 {[%emt 0:00:00] And now Nxd7 would win.} Be8 {[%emt 0:00:00]} 41. Na4 {[%emt 0:02:13][%cal Oa4c3]} h6 {[%emt 0:05:16]} 42. Kh2 {[%emt 0:10:19]} Nb6 $1 {[%emt 0:15:55]} 43. Nc3 {[%emt 0:00:13]} Kd6 {[%emt 0:00:33]} 44. Kg3 {[%emt 0:05:11] The position is equal.} Nc4 {[%emt 0:05:17]} 45. Kf4 {[%emt 0:10:26]} Kc5 {[%emt 0:00:20]} 46. h4 {[%emt 0:03:02]} Bxb5 {[%emt 0:00:35] Black escapes into a draw.   Weighted Error Value: White=0.11 (very precise) /Black=0.10 (very precise)} 1/2-1/2